Cogmind - Beta 11 X6 @@@ ROGUE MODE // 2021.07.20 @ 16:46:57 // Winter2019/RPGLIKE Player: Kenzurith Result: Destroyed by A-27 Freighter with PD Laser Performance ------------- Evolutions (3) 1500 Regions Visited (6) 1200 Robots Destroyed (70) 350 Value Destroyed (2445) 2445 Prototype IDs (27) 540 Alien Tech Used (0) 0 Bonus (-379) -379 TOTAL SCORE: 5656 Bonus ------- High Alert Combat Kills 331 Aligned with FarCom 300 Friendly Fire -1010 Cogmind --------- Core Integrity 0/600 Matter 45/300 Energy 350/350 System Corruption 1% Temperature Warm (103) Movement Treading (160) Location -7/Factory Parts ------- > --- POWER (2) -------- Enhanced Nuclear Core Micro Nuclear Core > --- PROPULSION (2) --- Medium Treads Medium Treads > --- UTILITY (6) ------ Structural Scanner Improved Sensor Array Improved Signal Interpreter Weapon Cycler > --- WEAPON (3) ------- Enhanced Autogun Enhanced Autogun YI-UF0's Doublenader > --- INVENTORY (5) ---- Heavy EM Shotgun AWS/Autocannon Spear Peak State ------------ > --- POWER ------------ Enhanced Nuclear Core Micro Nuclear Core > --- PROPULSION ------- Medium Treads Medium Treads > --- UTILITY ---------- Structural Scanner Improved Sensor Array Improved Signal Interpreter Weapon Cycler Heavy Armor Plating > --- WEAPON ----------- Heavy EM Shotgun Enhanced Autogun Enhanced Autogun > --- INVENTORY -------- AWS/Autocannon YI-UF0's Doublenader Spear [Rating: 49] Favorites ----------- Power Light Nuclear Core Engine Improved Deuterium Engine Power Core Light Nuclear Core Propulsion Aluminum Leg Treads Light Treads Leg Aluminum Leg Utility Structural Scanner Device Structural Scanner Processor Improved Signal Interpreter Protection Heavy Armor Plating Weapon Enhanced Autogun Energy Gun EM Pulse Gun Ballistic Gun Enhanced Autogun Ballistic Cannon Bore Cannon Launcher YI-UF0's Doublenader Build | -11 -10 -10 -10 -9 -8 -7 ------- Run | Scr Mat Min Exi Min Mat Fac Slots Evolved 9 | 2 1 . . . 5 1 Power 1 | . . . . . . 1 Propulsion 1 | 1 . . . . . . Utility 5 | . 1 . . . 4 . Weapon 2 | 1 . . . . 1 . Parts Attached 39 | 3 3 3 2 1 16 11 Power 5 | . 1 . . . . 4 Engine 1 | . . . . . . 1 Core 4 | . 1 . . . . 3 Reactor . | . . . . . . . Propulsion 8 | 1 . . . . 4 3 Treads 7 | . . . . . 4 3 Leg 1 | 1 . . . . . . Wheel . | . . . . . . . Hover . | . . . . . . . Flight . | . . . . . . . Utility 9 | . 2 . . . 6 1 Device 6 | . 2 . . . 3 1 Storage . | . . . . . . . Processor 1 | . . . . . 1 . Hackware . | . . . . . . . Protection 2 | . . . . . 2 . Artifact . | . . . . . . . Weapon 17 | 2 . 3 2 1 6 3 Energy Gun 5 | 2 . . 1 . 1 1 Energy Cannon . | . . . . . . . Ballistic Gun 5 | . . . . 1 4 . Ballistic Cannon 2 | . . 2 . . . . Launcher 5 | . . 1 1 . 1 2 Special Weapon . | . . . . . . . Impact Weapon . | . . . . . . . Slashing Weapon . | . . . . . . . Piercing Weapon . | . . . . . . . Special Melee Weapon . | . . . . . . . Unidentified Prototypes 4 | . . 1 . . 2 1 Corrupted Parts 3 | . . 1 . . 2 . System Corruption 7 | . . 3 . . 4 . Parts Lost 1 | . . . . . . 1 Power . | . . . . . . . Propulsion . | . . . . . . . Utility 1 | . . . . . . 1 Weapon . | . . . . . . . Highest Loss Streak 1 | . . . . . . 1 Average Slot Usage (%) 96 | . 98 99 100 100 96 91 Engine 1 | . 11 . . . . 3 Core 10 | . 3 14 14 14 10 8 Treads 8 | . . . . . 17 15 Leg 15 | . 30 28 28 28 4 . Device 27 | . 21 28 28 28 29 24 Processor 2 | . . . . . 3 7 Protection 3 | . . . . . 6 7 Energy Gun 10 | . 30 16 13 10 2 7 Ballistic Gun 8 | . . . . 3 18 15 Ballistic Cannon 6 | . . 11 14 14 2 . Naked Turns . | . . . . . . . Heaviest Build 46 | 9 11 18 22 19 37 46 Greatest Support 56 | 20 20 20 20 20 40 56 Greatest Overweight (x) 2 | . . . 1 . 2 . Average Overweight (x) . | . . . . . . . Largest Inventory Capacity 5 | . 1 2 4 4 4 5 Average Capacity 3 | . . 1 2 4 4 4 Most Carried 5 | . 1 2 4 4 4 5 Average Carried 3 | . . 1 2 4 4 4 Final Capacity 5 | . 1 2 4 4 4 5 Final Carried 5 | . 1 2 4 4 4 5 Class Distribution -------------------- 43% | Skirmisher 37% | Mutant 19% | Scavenger-Skirmisher Dominant Class ---------------- Mutant | -10/Materials Mutant | -10/Mines Mutant | -10/Exiles Skirmisher | -9/Mines Scavenger-Skirmisher | -8/Materials Skirmisher | -7/Factory Resources | -11 -10 -10 -10 -9 -8 -7 ----------- Run | Scr Mat Min Exi Min Mat Fac Matter Collected 1429 | 230 30 131 . 111 601 326 Remotely . | . . . . . . . Salvage Created 2162 | . 381 217 . 155 598 811 Parts 151 | . 20 14 . 9 60 48 Haulers Intercepted 1 | . 1 . . . . . Recyclers Shooed 5 | . 1 . . . 1 3 Parts Field Recycled . | . . . . . . . Retrieved Matter . | . . . . . . . Parts Self-Destructed . | . . . . . . . Prevented . | . . . . . . . Kills | -11 -10 -10 -10 -9 -8 -7 ------- Run | Scr Mat Min Exi Min Mat Fac Combat Hostiles Destroyed 55 | . 9 2 . 3 20 21 Guns 34 | . 8 1 . 1 16 8 Cannons 6 | . . . . 2 4 . AOE 15 | . 1 1 . . . 13 Classes Destroyed 17 | . 3 2 . 3 3 6 Worker 2 | . . 1 . . . 1 Builder 3 | . . . . 1 . 2 Tunneler 1 | . . 1 . . . . Hauler 1 | . 1 . . . . . Recycler 4 | . . . . . . 4 Mechanic 1 | . . . . . . 1 Watcher 3 | . . . . . 2 1 Swarmer 10 | . 3 . . . 4 3 Grunt 20 | . 6 2 . . 7 5 Brawler 1 | . . . . . . 1 Duelist 1 | . . . . . 1 . Protector 2 | . . . . . . 2 Sentry 10 | . . . . 2 7 1 Specialist 4 | . . . . . . 4 Hunter 3 | . . . . . 1 2 Programmer 3 | . . . . . . 3 Assembled 1 | . . . . 1 . . Best Kill Streak 18 | . 3 4 . 2 6 18 Combat Bots Only 13 | . 3 2 . 2 4 13 Max Kills in Single Turn 6 | . 2 1 . 1 1 6 Gunslinging 1 | . 1 . . . . . Exploded 3 | . 1 1 . . . 3 Melee . | . . . . . . . Uniques/NPCs Destroyed 1 | . . 1 . . . . YI-UF0 (-10/Mines) Combat | -11 -10 -10 -10 -9 -8 -7 -------- Run | Scr Mat Min Exi Min Mat Fac Damage Taken 2328 | . 205 66 . 135 676 1246 Core 1575 | . 158 55 . 106 450 806 Absorbed by Shields 126 | . . . . . 126 . Redirected to Core 1365 | . 142 42 . 106 374 701 Core Remaining (%) 91 | 100 . . . 77 98 . Volleys Fired 159 | . 16 24 . 6 71 42 Largest 3 | . 2 2 . 2 3 3 Hottest 100 | . 80 97 . 97 100 100 Shots Fired 304 | . 32 32 . 11 145 84 Gun 267 | . 32 21 . 5 136 73 Cannon 25 | . . 10 . 6 9 . Launcher 12 | . . 1 . . . 11 Special . | . . . . . . . Kinetic 219 | . . 10 . 7 140 62 Thermal . | . . . . . . . Explosive 12 | . . 1 . . . 11 Electromagnetic 73 | . 32 21 . 4 5 11 Robot Hit Streak 16 | . 7 5 . 5 16 9 Robot Miss Streak 6 | . 3 2 . 2 6 6 Penetration Max . | . . . . . . . Secondary Targets 6 | . 2 . . . 3 1 Max Gunslinging Chain 1 | . 1 . . . 1 1 Shots Hit Robots 181 | . 22 15 . 8 88 48 Core Hits 151 | . 14 6 . 5 37 89 Critical Kills 3 | . . . . 2 1 . Critical Parts Destroyed 4 | . . 1 . 1 1 1 Critical Strikes 9 | . 1 1 . 4 2 1 Destroy 8 | . . 1 . 4 2 1 Corrupt 1 | . 1 . . . . . Melee Attacks . | . . . . . . . Impact . | . . . . . . . Slashing . | . . . . . . . Piercing . | . . . . . . . Sneak Attacks . | . . . . . . . Combat Hostiles . | . . . . . . . Follow-up Attacks . | . . . . . . . Damage Inflicted 5694 | . 373 331 . 135 1578 3277 Guns 2751 | . 283 158 . 34 1428 848 Cannons 289 | . . 49 . 101 139 . Explosions 2654 | . 90 124 . . 11 2429 Melee . | . . . . . . . Ramming . | . . . . . . . Kinetic 2299 | . . 49 . 101 1471 678 Thermal 214 | . 90 124 . . . . Explosive 2429 | . . . . . . 2429 Electromagnetic 752 | . 283 158 . 34 107 170 Impact . | . . . . . . . Slashing . | . . . . . . . Piercing . | . . . . . . . Highest Corruption 4 | . . 3 3 3 4 1 Average Corruption 2 | . . 3 3 3 2 1 Corruption Purged . | . . . . . . . Effects 32 | . . 6 6 12 8 . Message Errors 13 | . . 1 3 4 5 . Matter Fused 6 | . . 2 . 4 . . Heat Flow Errors 3 | . . 1 2 . . . Energy Discharges 3 | . . . . 2 1 . Data Loss (minor) 4 | . . 2 1 1 . . Weapon Failures 3 | . . . . 1 2 . Overload Shots . | . . . . . . . Overflow Damage 31 | . . . . . . 31 Projectiles . | . . . . . . . Explosions 31 | . . . . . . 31 Melee . | . . . . . . . Knockbacks 1 | . . 1 . . . . Impact . | . . . . . . . Kinetic 1 | . . 1 . . . . Secondary . | . . . . . . . Self-Inflicted Damage 148 | . 59 67 . . . 22 Shots 5 | . 2 2 . . . 1 Rammed . | . . . . . . . Targets Rammed . | . . . . . . . Kicked . | . . . . . . . Crushed . | . . . . . . . Highest Temperature 266 | . 90 266 218 174 123 216 Average Temperature 57 | . 32 51 122 74 37 77 Received Heat Transfer 586 | . 75 . . 72 292 147 Siege Activations . | . . . . . . . Robots Corrupted 1 | . . 1 . . . . Combat Hostiles . | . . . . . . . Parts Fried 1 | . 1 . . . . . Impact Corruptions . | . . . . . . . Robots Melted . | . . . . . . . Combat Hostiles . | . . . . . . . Parts Melted . | . . . . . . . Heat Transferred 250 | . 100 150 . . . . Parts Sabotaged . | . . . . . . . Parts Stolen . | . . . . . . . Parts Stripped . | . . . . . . . Power Chain Reactions 3 | . 2 1 . . . . Missiles Intercepted . | . . . . . . . Alert | -11 -10 -10 -10 -9 -8 -7 ------- Run | Scr Mat Min Exi Min Mat Fac Peak Influence 889 | . 292 113 . 55 531 889 Initial 190 | . . 113 . . 21 190 Average 118 | . 117 66 . 15 219 124 Maximum Alert Level 3 | . 1 . . . 2 3 Low Security (%) 82 | 100 84 100 . 100 45 96 Level 1 15 | . 15 . . . 48 1 Level 2 1 | . . . . . 5 . Level 3 . | . . . . . . 1 Level 4 . | . . . . . . . Level 5 . | . . . . . . . High Security . | . . . . . . . Max Security . | . . . . . . . Squads Dispatched 12 | . 2 . . . 5 5 Investigation 2 | . 1 . . . 1 . Extermination 2 | . . . . . . 2 Reinforcement 7 | . 1 . . . 3 3 Assault 1 | . . . . . 1 . Garrison . | . . . . . . . Intercept . | . . . . . . . Construction Impeded 1 | . . . . . . 1 Haulers Reinforced . | . . . . . . . Active Scanning Responses . | . . . . . . . Cargo Convoy Interrupts 1 | . . . . . . 1 Stealth | -11 -10 -10 -10 -9 -8 -7 --------- Run | Scr Mat Min Exi Min Mat Fac Distress Signals 3 | . . . . . 3 . Communications Jammed . | . . . . . . . Distress Signals . | . . . . . . . Times Spotted 78 | . 12 1 . 3 34 28 Peak Tracking Total 15 | . 4 2 . 2 4 15 Tactical Retreats 6 | . 1 . . . 5 . Traps | -11 -10 -10 -10 -9 -8 -7 ------- Run | Scr Mat Min Exi Min Mat Fac Traps Triggered 2 | . 1 . . . . 1 Indirectly . | . . . . . . . Trap Hack Attempts . | . . . . . . . Triggered . | . . . . . . . Disarmed . | . . . . . . . Reprogrammed . | . . . . . . . Reused . | . . . . . . . Traps Extracted . | . . . . . . . Installed . | . . . . . . . Triggered . | . . . . . . . Machines | -11 -10 -10 -10 -9 -8 -7 ---------- Run | Scr Mat Min Exi Min Mat Fac Machines Disabled 7 | . 2 1 . 1 2 1 Max in Single Turn 2 | . 2 1 . 1 1 1 Machines Sabotaged . | . . . . . . . Garrisons Compromised . | . . . . . . . Overloaded Fab Kills . | . . . . . . . Fab Network Shutdowns . | . . . . . . . Hacking | -11 -10 -10 -10 -9 -8 -7 --------- Run | Scr Mat Min Exi Min Mat Fac Machines Accessed 12 | . 3 1 2 . 3 3 Terminals 9 | . 3 1 . . 2 3 Fabricators . | . . . . . . . Repair Stations . | . . . . . . . Recycling Units 1 | . . . . . 1 . Scanalyzers . | . . . . . . . Garrison Access . | . . . . . . . Total Hacks 32 | . 12 2 2 . 7 9 Successful 17 | . 7 2 2 . 3 3 Failed 15 | . 5 . . . 4 6 Catastrophic 2 | . 1 . . . . 1 Database Lockouts . | . . . . . . . Manual 28 | . 12 1 1 . 5 9 Terminals 28 | . 12 2 . . 5 9 Fabricators . | . . . . . . . Repair Stations . | . . . . . . . Recycling Units 2 | . . . . . 2 . Scanalyzers . | . . . . . . . Garrison Access . | . . . . . . . Terminal Hacks 10 | . 5 1 2 . 1 1 Record 1 | . . . 1 . . . Robot Analysis 4 | . 3 . . . 1 . Branch Access Points 1 | . . . . . . 1 Locate Traps 1 | . 1 . . . . . Dispatch Records 1 | . . 1 . . . . Zone Layout 1 | . 1 . . . . . EX-Prototype ID Bank 1 | . . . 1 . . . Fabricator Hacks . | . . . . . . . Repair Station Hacks . | . . . . . . . Recycling Unit Hacks 1 | . . . . . 1 . Retrieve Components 1 | . . . . . 1 . Scanalyzer . | . . . . . . . Garrison Access Hacks . | . . . . . . . Unauthorized Hacks 6 | . 2 1 . . 1 2 Terminals 5 | . 2 1 . . . 2 Botnet 5 | . 2 1 . . . 2 Fabricators . | . . . . . . . Repair Stations . | . . . . . . . Recycling Units 1 | . . . . . 1 . Tunnel 1 | . . . . . 1 . Scanalyzers . | . . . . . . . Garrison Access . | . . . . . . . Data Cores Recovered . | . . . . . . . Used . | . . . . . . . Hacking Detections 9 | . 3 1 . . 2 3 Full Trace Events . | . . . . . . . Feedback Events . | . . . . . . . Feedback Blocked . | . . . . . . . Robot Schematics Acquired . | . . . . . . . Robots Built . | . . . . . . . Matter . | . . . . . . . Time . | . . . . . . . Total Robot Build Rating . | . . . . . . . Part Schematics Acquired . | . . . . . . . Parts Built . | . . . . . . . Matter . | . . . . . . . Time . | . . . . . . . Total Part Build Rating . | . . . . . . . Parts Repaired . | . . . . . . . Time . | . . . . . . . Parts Recycled . | . . . . . . . Recycled Matter . | . . . . . . . Retrieved Matter . | . . . . . . . Retrieved Components 9 | . . . . . 9 . Parts Scanalyzed . | . . . . . . . Part Schematics Acquired . | . . . . . . . Parts Damaged . | . . . . . . . Bothacking | -11 -10 -10 -10 -9 -8 -7 ------------ Run | Scr Mat Min Exi Min Mat Fac Used RIF Installer . | . . . . . . . Robots Hacked . | . . . . . . . Non-combat . | . . . . . . . Combat . | . . . . . . . Robot Hacks Applied . | . . . . . . . Relay Couplers Released . | . . . . . . . Robots Rewired . | . . . . . . . Allies Hacked . | . . . . . . . Hacks Repelled . | . . . . . . . Allies | -11 -10 -10 -10 -9 -8 -7 -------- Run | Scr Mat Min Exi Min Mat Fac Total Allies . | . . . . . . . Largest Group . | . . . . . . . Highest-Rated Group . | . . . . . . . Highest-Rated Ally . | . . . . . . . Total Orders . | . . . . . . . Ally Attacks . | . . . . . . . Total Damage . | . . . . . . . Kills . | . . . . . . . Allies Corrupted . | . . . . . . . Allies Melted . | . . . . . . . Intel | -11 -10 -10 -10 -9 -8 -7 ------- Run | Scr Mat Min Exi Min Mat Fac Robot Analysis Total 4 | . 3 . . . 1 . Derelict Logs Recovered 2 | . . 1 . 1 . . Drone Launches . | . . . . . . . Drone Recoveries . | . . . . . . . Exploration | -11 -10 -10 -10 -9 -8 -7 ------------- Run | Scr Mat Min Exi Min Mat Fac Turns Passed 4677 | 16 323 1117 272 643 1211 1095 Spaces Moved 3014 | 10 216 868 216 492 586 626 Core . | . . . . . . . Treads 1112 | . . . . . 486 626 Legs 1902 | 10 216 868 216 492 100 . Wheels . | . . . . . . . Hover . | . . . . . . . Flight . | . . . . . . . Fastest Speed 120 | 120 120 120 120 120 120 152 Average Speed 134 | 120 120 120 121 120 159 153 Slowest Speed 280 | 120 120 120 200 120 280 160 Overloaded Moves . | . . . . . . . Propulsion Burnouts . | . . . . . . . Robots Hopped . | . . . . . . . Cave-ins Triggered . | . . . . . . . Exploration Rate (%) 45 | 2 39 96 60 57 50 14 Regions Visited 6 Branch Regions 3 Pre-discovered Areas 3 | . . . 1 1 1 . Known Exits Taken 2 | . . . . 1 1 . Unknown Exits Taken 4 | 1 1 1 1 . . . Scrap Searched 3 | . . 2 . 1 . . Spaces Dug 3 | . . 3 . . . . Terrain Destroyed 92 | . 4 41 . 3 4 40 Melee . | . . . . . . . Projectile 15 | . . 8 . 3 4 . AOE 77 | . 4 33 . . . 40 Terrain Rammed . | . . . . . . . Walls Destroyed . | . . . . . . . Machines Disabled . | . . . . . . . Actions | -11 -10 -10 -10 -9 -8 -7 --------- Run | Scr Mat Min Exi Min Mat Fac Total 3419 | 13 247 913 226 532 767 721 Wait 123 | . 7 13 . 33 46 24 Move 3008 | 9 215 867 215 491 585 626 Hop . | . . . . . . . Pick Up 4 | . 1 1 1 . . 1 Fast Attach 27 | 3 3 3 . 1 12 5 Attach 1 | . . . 1 . . . Detach 2 | . . 1 1 . . . Swap 11 | . . . 1 . 4 6 Drop 24 | 1 1 3 1 1 10 7 Fire 159 | . 16 24 . 6 71 42 Melee . | . . . . . . . Ram . | . . . . . . . Kick . | . . . . . . . Crush . | . . . . . . . Escape Stasis . | . . . . . . . Rewire 1 | . . 1 . . . . Trap . | . . . . . . . Miscellaneous 59 | . 4 . 6 . 39 10 Route ------- -11/Scrapyard -10/Materials (discovered 2 exits: *Min x2) -10/Mines (discovered 3 exits: [*Mat x2] / *Exi) -10/Exiles -9/Mines (discovered 2 exits: *Mat x2) -8/Materials (discovered 2 exits: *Fac x2) -7/Factory (discovered 2 exits: Low x2) History --------- Turn | Location | Event 1 | -11/Scrapyard | Upgraded with Propulsion slot (x1) 1 | -11/Scrapyard | Upgraded with Weapon slot (x1) 1 | -11/Scrapyard | Discovered new exit (range 1) 17 | -11/Scrapyard | Entered Materials 154 | -10/Materials | Upgraded with Utility slot (x1) 251 | -10/Materials | Discovered new exit (range 16) 304 | -10/Materials | Build established: Mutant 318 | -10/Materials | Discovered new exit (range 10) 340 | -10/Materials | Entered Mines 342 | -10/Mines | Reached level 2 388 | -10/Mines | YI-UF0 nonchalantly dropped a Grenade Launcher on the ground 471 | -10/Mines | Discovered new exit (range 8) 547 | -10/Mines | A weapon hastily lodged in a ceiling crevice suddenly fell to the ground 875 | -10/Mines | Discovered new exit (range 6) 1036 | -10/Mines | Learned Materials trap positions 1058 | -10/Mines | Deemed a non-threat by the Exiles lab entrance 1058 | -10/Mines | Discovered new exit (range 6) 1242 | -10/Mines | Destroyed YI-UF0 1257 | -10/Mines | Found Corrupted Prototype Launcher 1257 | -10/Mines | Identified YI-UF0's Doublenader 1457 | -10/Mines | Entered Exiles 1486 | -10/Exiles | Met 8R-AWN 1507 | -10/Exiles | Met EX-HEX 1540 | -10/Exiles | Met EX-BIN 1561 | -10/Exiles | Aligned with FarCom system 1562 | -10/Exiles | Given EX-Vault access code 1595 | -10/Exiles | Opened EX-Vault 1607 | -10/Exiles | Found AWS/Autocannon 1636 | -10/Exiles | Warned to stay clear of 0b10 Research branches 1674 | -10/Exiles | Met EX-DEC 1680 | -10/Exiles | Learned location of Zion (-7) 1720 | -10/Exiles | Discovered new exit (range 10) 1729 | -10/Exiles | Left Exiles lab with AWS/Autocannon 1729 | -10/Exiles | Entered Mines 1730 | -9/Mines | Learned location of Storage (-9) 1868 | -9/Mines | Assembled infested the area 1895 | -9/Mines | Discovered new exit (range 15) 2032 | -9/Mines | Build established: Skirmisher 2200 | -9/Mines | Reached level 3 2285 | -9/Mines | Identified exit to Materials 2372 | -9/Mines | Entered Materials 2373 | -8/Materials | Loaded intel: 13 trap records 2374 | -8/Materials | Reached level 4 2437 | -8/Materials | Upgraded with Utility slot (x1) 2727 | -8/Materials | Discovered new exit (range 9) 2757 | -8/Materials | Upgraded with Utility slot (x1) 3011 | -8/Materials | Reached level 5 3055 | -8/Materials | Build established: Scavenger-Skirmisher 3115 | -8/Materials | Upgraded with Utility slot (x1) 3201 | -8/Materials | Upgraded with Weapon slot (x1) 3376 | -8/Materials | Reached level 6 3426 | -8/Materials | Upgraded with Utility slot (x1) 3567 | -8/Materials | Discovered new exit (range 9) 3572 | -8/Materials | First assault squad dispatched 3577 | -8/Materials | Identified exit to Factory 3583 | -8/Materials | Entered Factory 3585 | -7/Factory | Reached level 7 3934 | -7/Factory | Build established: Skirmisher 4131 | -7/Factory | Upgraded with Power slot (x1) 4456 | -7/Factory | Identified exit to Lower Caves 4610 | -7/Factory | Reached level 8 4657 | -7/Factory | Cargo convoy interrupted 4662 | -7/Factory | Core integrity fell below 50% 4672 | -7/Factory | Reached level 9 4673 | -7/Factory | Core integrity fell below 20% 4678 | -7/Factory | Destroyed by A-27 Freighter with PD Laser Last Messages --------------- 04663_ Penetrated by Slug. 04664_ H-55 Commando destroyed. 04664_ Destroyed Com. Wheel. 04665_ Penetrated by Slug. 04666_ I-36 Angel destroyed. 04666_ U-05 Engineer destroyed. 04667_ G-47 Trooper destroyed. 04667_ Penetrated by Slug. 04669_ X-62 Marksman destroyed. 04670_ Hvy. Armor Plating destroyed. 04670_ K-01 Serf destroyed. 04671_ Destroyed Com. Wheel. 04672_ Reached level 9. 04672_ B-48 Gladiator destroyed. 04672_ Destroyed Com. Battery. 04672_ G-47 Trooper destroyed. 04676_ Penetrated by Slug. 04677_ Destroyed Lgt. Nuclear Core. 04677_ I-36 Angel destroyed. 04678_ The unstable cave ceiling collapses. Map ----- +----------------------------------------------------+ | ?????????????????????????## """" T"# ????????? | | ?????????????????????????## ""# ######## | | ?????????????????????????## ########### | | ?????????????????????????## * + | | ?????????????????????????#### # [ ## | | ??????????????????????? ##### # % ## ] | | ??????????????????????? #####+##### ### !! | | ??????????????????????? # !% # ### ! =! | | ??????????????????????? # """ / ### ! | | ???????????????????????## """"" # ### | | ???????????????????????##! """"" #% ### | | ???????????????????????## # ### """""""" | | ???????????????? ################# ### | | ??????????????? ######## + ### """""""" | | ???????????????? # """" # ### | | ???????????????? # ""S"" # ########+### | | ??????????????? # "" "" # # | | ????????????? # #u # """" """" | | ????????????? # # # """" """" | | ?????????????? #! #% """" """" | | ??????????"" """" """" # [ % """" """" | | ?????????""" """" %%%% # = | | ??????? """" """% %%%% ## #= #######+ | | ??????? A h %* | | ??????? u ! ^ | | ?????? *% @ [ = ^ | | ?????? = * ^ | | ????? k ^ | | ????? r %= * ^ | | ????? ^ | | ????? ####;##;########### # ####+##+# | | ??????? ? ######################## ### | | ?????????? ??????#######??????????######?## | | ?????????????????????????????????????????## | | ?????????????????????????????????????????## | | ?????????????????????????????????????????## | | ?????????????????????????????????????????## | | ?????????????????????????????????????????## | | ?????????????????????????????????????????## | | ?????????????????????????????????????????## | | ?????????????????????????????????????????## | | ?????????????????????????????????????????## | | ?????????????????????????????????????????## | | ?????????????????????????????????????????######### | | ?????????????????????????????????????????######### | | ?????????????????????????????????????????????????? | | ?????????????????????????????????????????????????? | | ?????????????????????????????????????????????????? | | ?????????????????????????????????????????????????? | | ?????????????????????????????????????????????????? | +----------------------------------------------------+ Best States ------------- Heat Dissipation 55 Energy Generation 28 Energy Capacity 490 Matter Stores 300 Matter Capacity 300 Sight Range 16 Robot Scan Range 15 Terrain Scan Density 10 Armor Coverage 600 Weapon Cycling 15 Evasion (%) 55 Recoil Reduction 2 Item Schematics ----------------- None Robot Schematics ------------------ None Fabricated ------------ Nothing Alien Tech Used ----------------- None Achievements -------------- None Challenges ------------ None RPGLIKE | -11 -10 -10 -10 -9 -8 -7 --------- Run | Scr Mat Min Exi Min Mat Fac Levels Raised 8 | . . 1 . 1 3 3 XP Earned 15238 | 3000 1310 825 350 700 5026 4027 XP Spent 12000 | 1000 750 500 1750 . 6010 1990 Upgrades 19 | 2 2 1 2 . 8 4 Power Slot 1 | . . . . . . 1 Propulsion Slot 1 | 1 . . . . . . Utility Slot 5 | . 1 . . . 4 . Weapon Slot 2 | 1 . . . . 1 . Heat Dissipation 5 | . . . . . 3 2 Inventory Capacity 5 | . 1 1 2 . . 1 Protomatter Created 712 | . 81 39 . . 425 167 Integrity Restored 1212 | . 71 . 129 . 808 204 Core 965 | . 55 . 129 . 577 204 Parts 247 | . 16 . . . 231 . Protomatter Decayed 232 | . 13 39 . 58 122 . Game ------ Seed GodNodeGuard Manual? 0 Play Time 00:36:08 Cumulative 358.3 hours Start 2021.07.20 @ 05:05:30 End 2021.07.20 @ 16:46:57 Sessions 3 Manual Loads 0 Difficulty Rogue Special Mode Winter2019/RPGLIKE Game No. 182 Rogue 179 Adventurer 1 Explorer 2 Win Type - Total 6 Types 3/1/1/0/0/0/1/0/0 Lore% 83 Gallery% 90 Achievement% 69 Wizard Run 0 Options --------- ASCII 0 Keyboard 1 Movement Numpad Keybinds 1 Fullscreen 1 Font 24/Terminus Map View 76x50 Tactical HUD 1 Map Filters NONE Filters LOW_CONTRAST(0,0,0) Steam 1 RUN: fd2c3d68-0dd5-48e9-937a-a6c7fb485efa